fUSD/lending_fUSD_20250215
["ID","MTS","AMOUNT","RATE_DAILY","PERIOD"]
[353181705,1739633460264,-500.0,0.00011123,2]
[353181706,1739633460274,-747.32,0.00011123,2]
[353181707,1739633460283,-500.0,0.00011123,2]
[353181708,1739633460292,-500.0,0.00011123,2]
[353181709,1739633460301,-1740.39,0.00011123,2]
[353181710,1739633460310,-500.0,0.00011123,2]
[353181711,1739633460320,-500.0,0.00011123,2]
[353181712,1739633460330,-500.0,0.00011123,2]
[353181713,1739633460339,-500.0,0.00011123,2]
[353181714,1739633460348,-213.2,0.00011123,2]
[353181715,1739633460357,-500.0,0.00011123,2]
[353181716,1739633460367,-500.0,0.00011123,2]
[353181717,1739633460376,-500.0,0.00011123,2]
[353181718,1739633460386,-1007.16,0.00011123,2]
[353181719,1739633460395,-500.0,0.00011123,2]
[353181720,1739633460404,-500.0,0.00011123,2]
[353181721,1739633460413,-500.0,0.00011123,2]
[353181722,1739633460423,-500.0,0.00011123,2]
[353181723,1739633460433,-969.24,0.00011123,2]
[353181724,1739633460443,-500.0,0.00011123,2]
[353181725,1739633460452,-857.83,0.00011123,2]
[353181726,1739633460462,-1673.73,0.00011123,2]
[353181727,1739633460471,-500.0,0.00011123,2]
[353181728,1739633460481,-500.0,0.00011123,2]
[353181729,1739633460492,-500.0,0.00011123,2]
[353181730,1739633460501,-300.33,0.00011123,2]
[353181731,1739633460511,-722.95,0.00011123,2]
[353181732,1739633460521,-1844.49,0.00011123,2]
[353181733,1739633460531,-500.0,0.00011123,2]
[353181734,1739633460541,-500.0,0.00011123,2]
[353181735,1739633460552,-500.0,0.00011123,2]
[353181736,1739633460561,-500.0,0.00011123,2]
[353181737,1739633460572,-500.0,0.00011123,2]
[353181738,1739633460582,-500.0,0.00011123,2]
[353181739,1739633460591,-500.0,0.00011123,2]
[353181740,1739633460601,-1182.0,0.00011123,2]
[353181741,1739633460609,-28808.0,0.00011123,2]
[353181742,1739633460618,-6978.0,0.00011123,2]
[353181743,1739633460627,-500.0,0.00011124,2]
[353181744,1739633460637,-1487.82,0.00011124,2]
[353181745,1739633460646,-5656.1752667,0.00011155,2]
[353181746,1739633460656,-12465.1970791,0.00011155,2]
[353181747,1739633460665,-5300.4615925,0.00011156,2]
[353181748,1739633460674,-4944.7479183,0.00011156,2]
[353181749,1739633460683,-4589.034244,0.00011156,2]
[353181750,1739633460693,-11681.2678612,0.00011156,2]
[353181751,1739633460704,-10897.3386434,0.00011156,2]
[353181752,1739633460713,-10113.4094255,0.00011156,2]
[353181753,1739633460723,-2022.8371727,0.0001116,2]
[353181754,1739633460732,-500.0,0.0001116,2]
[353181755,1739633460743,-1248.36589689,0.00011161,3]
[353181756,1739633460753,-500.0,0.00011161,2]
[353181757,1739633460762,-500.0,0.00011161,2]
[353181758,1739633460772,-500.0,0.00011161,2]
[353181759,1739633460781,-500.0,0.00011161,2]
[353181760,1739633460791,-500.0,0.00011161,2]
[353181761,1739633460800,-500.0,0.00011161,2]
[353181762,1739633460810,-500.0,0.00011161,2]
[353181763,1739633460819,-1487.82,0.00011161,2]
[353181764,1739633460828,-1487.82,0.00011161,2]
[353181765,1739633460838,-1487.82,0.00011161,2]
[353181766,1739633460848,-1487.82,0.00011161,2]
[353181767,1739633460858,-1487.82,0.00011161,2]
[353181768,1739633460867,-500.0,0.00011161,2]
[353181769,1739633460877,-2000.0,0.00011161,2]
[353181770,1739633460887,-925.82,0.00011161,2]
[353181771,1739633461039,-925.82,0.00011161,2]
[353181772,1739633461049,-925.82,0.00011161,2]
[353181773,1739633461057,-925.82,0.00011161,2]
[353181774,1739633461068,-925.82,0.00011161,2]
[353181775,1739633461077,-925.82,0.00011161,2]
[353181776,1739633461086,-2000.0,0.00011161,2]
[353181777,1739633461095,-2000.0,0.00011161,2]
[353181778,1739633461104,-1275918.86347763,0.00011162,2]
[353181779,1739633461114,-261.94137856,0.00011163,3]
[353181780,1739633461123,-1487.82,0.00011163,2]
[353181781,1739633461133,-1487.82,0.00011163,2]
[353181782,1739633461143,-1487.82,0.00011163,2]
[353181783,1739633461152,-1487.82,0.00011163,2]
[353181784,1739633461161,-1487.82,0.00011163,2]
[353181785,1739633461170,-1487.82,0.00011163,2]
[353181786,1739633461179,-1487.82,0.00011163,2]
[353181787,1739633461189,-1487.82,0.00011163,2]
[353181788,1739633461198,-1487.82,0.00011163,2]
[353181789,1739633461208,-1487.82,0.00011163,2]
[353181790,1739633461218,-1487.82,0.00011163,2]
[353181791,1739633461227,-1487.82,0.00011163,2]
[353181792,1739633461237,-1487.86,0.00011163,2]
[353181793,1739633461247,-2000.0,0.00011163,2]
[353181794,1739633461256,-2000.0,0.00011163,2]
[353181795,1739633461266,-2000.0,0.00011163,2]
[353181796,1739633461275,-925.82,0.00011163,2]
[353181797,1739633461284,-925.82,0.00011163,2]
[353181798,1739633461294,-925.82,0.00011163,2]
[353181799,1739633461304,-925.82,0.00011163,2]
[353181800,1739633461313,-925.82,0.00011163,2]
[353181801,1739633461323,-925.82,0.00011163,2]
[353181802,1739633461333,-925.82,0.00011163,2]
[353181803,1739633461343,-925.82,0.00011163,2]
[353181804,1739633461353,-925.82,0.00011163,2]
[353181805,1739633461362,-925.82,0.00011163,2]
[353181806,1739633461371,-925.82,0.00011163,2]
[353181807,1739633461380,-925.82,0.00011163,2]
[353181808,1739633461391,-926.01,0.00011163,2]
[353181809,1739633461401,-2000.0,0.00011163,2]
[353181810,1739633461410,-4247.6265523,0.00011164,2]
[353181811,1739633461420,-408909.98380824,0.00011164,2]
[353181812,1739633461784,-967.61,0.00011041,2]
[353181813,1739633461794,-4885412.0115426,0.00011164,2]
[353181814,1739633461821,-245735.55826066,0.00011164,2]
[353181815,1739633461832,-291283.16755239,0.00011164,2]
[353181816,1739633461844,-413.065,0.00011164,2]
[353181817,1739633462513,-500.0,0.00010958,2]
[353181818,1739633462522,-472.14640884,0.00010958,2]
[353181819,1739633462544,-90.86817853,0.00010958,2]
[353181820,1739633462553,-500.0,0.00010958,2]
[353181821,1739633462562,-615.23,0.00010958,2]
[353181822,1739633462571,-500.0,0.00010958,2]
[353181823,1739633462580,-500.0,0.00011041,2]
[353181824,1739633462589,-615.23,0.00011041,2]
[353181825,1739633462598,-500.0,0.00011041,2]
[353181826,1739633462607,-1546.26854222,0.00011099,2]
[353181827,1739633462661,-340.01854903,0.00011099,2]
[353181828,1739633463191,-509.49,0.0001,2]
[353181829,1739633463201,-500.0,0.00010958,2]
[353181830,1739633463210,-500.0,0.00010958,2]
[353181831,1739633463221,-500.0,0.00010958,2]
[353181832,1739633463230,-562.9,0.00010958,2]
[353181833,1739633463240,-500.0,0.00011041,2]
[353181834,1739633463249,-274.24,0.00011041,2]
[353181835,1739633463259,-1595.46563519,0.00011099,2]
[353181836,1739633463268,-967.61,0.00011123,2]
[353181837,1739633463278,-500.0,0.00011123,2]
[353181838,1739633463287,-615.23,0.00011123,2]
[353181839,1739633463296,-500.0,0.00011123,2]
[353181840,1739633463305,-90123.06436482,0.00011164,2]
[353181841,1739633463327,-975.629,0.00011164,2]
[353181842,1739633534971,2540.8646,8.699e-05,2]
[353181843,1739633536649,1486.64531536,8.699e-05,2]
[353181844,1739633536669,5133.29028464,8.699e-05,2]
[353181845,1739633548854,733.2751,8.699e-05,2]
[353181846,1739633613767,266.6967,8.699e-05,2]
[353181847,1739633616278,1830.5685,0.0002068,120]
[353181848,1739633619870,9733.3033,8.699e-05,2]
[353181849,1739633619891,10000.0,8.699e-05,2]
[353181850,1739633619912,10000.0,8.699e-05,2]
[353181851,1739633619934,1291.4078,8.699e-05,2]
[353181852,1739633644508,1510.7848,8.699e-05,2]
[353181853,1739633763362,2011.093,8.699e-05,2]
[353181854,1739633806565,7988.907,8.699e-05,2]
[353181855,1739633806585,1223.0178,8.699e-05,2]
[353181856,1739633830648,3882.9373,8.699e-05,2]
[353181857,1739633840135,1216.663,8.699e-05,2]
[353181861,1739633871867,3677.3819,8.791e-05,2]
[353181862,1739633871889,1143.356041,8.791e-05,2]
[353181868,1739633906698,603.68,8.219e-05,2]
[353181877,1739634174870,1000.0,0.0002,120]
[353181878,1739634332467,453.4775,8.699e-05,2]
[353181880,1739634543448,-150.0,8.822e-05,2]
[353181881,1739634543477,-150.0,8.835e-05,2]
[353181882,1739634543503,-300.0,8.835e-05,2]
[353181883,1739634543529,-200.0,8.835e-05,2]
[353181884,1739634543553,-2462.0654,8.836e-05,2]
[353181885,1739634543581,-4537.421059,8.836e-05,2]
[353181886,1739634548551,-6316.015541,8.836e-05,2]
[353181887,1739634548573,-3683.984459,8.836e-05,2]
[353181888,1739634552529,-10000.0,8.836e-05,2]
[353181889,1739634555759,-10000.0,8.836e-05,2]
[353181890,1739634559508,-4967.378528,8.836e-05,2]
[353181891,1739634560593,-7614.889013,8.836e-05,2]
[353181892,1739634560615,-2385.110987,8.836e-05,2]
[353181893,1739634563978,-2625.716013,8.836e-05,2]
[353181894,1739634564000,-525.0742,8.836e-05,2]
[353181895,1739634564022,-2322.5407,8.836e-05,2]
[353181896,1739634564044,-1644.4037,8.836e-05,2]
[353181897,1739634564066,-2882.265387,8.836e-05,2]
[353181898,1739634568156,-10000.0,8.836e-05,2]
[353181899,1739634571375,-10000.0,8.836e-05,2]
[353181900,1739634575319,-5108.590313,8.836e-05,2]
[353181901,1739634575342,-201.0104,8.836e-05,2]
[353181902,1739634575365,-4161.5894,8.836e-05,2]
[353181903,1739634575390,-528.809887,8.836e-05,2]
[353181904,1739634579607,-2470.07182866,8.836e-05,2]
[353181907,1739634631508,-300.0,8.85e-05,2]
[353181908,1739634631517,-500.0,8.851e-05,2]
[353181909,1739634631526,-1000.0,8.851e-05,2]
[353181910,1739634631536,-2500.0,8.851e-05,2]
[353181911,1739634631546,-1517.6,8.973e-05,2]
[353181912,1739634631557,-353.8168,8.973e-05,2]
[353181913,1739634631567,-5000.0,8.973e-05,2]
[353181914,1739634631577,-33741.04441198,8.973e-05,2]
[353181915,1739634631587,-378.94330696,9.53e-05,2]
[353181916,1739634631597,-3814.43,9.707e-05,2]
[353181917,1739634631606,-200.0,9.719e-05,2]
[353181918,1739634631616,-200.0,9.719e-05,2]
[353181919,1739634631626,-150.0,9.719e-05,2]
[353181920,1739634631636,-1000.0,9.813e-05,2]
[353181921,1739634631645,-447.15,9.979e-05,2]
[353181922,1739634631655,-218.2013149,0.0001,2]
[353181923,1739634631664,-73760.7673125,0.0001,2]
[353181924,1739634631673,-499.12,0.0001,2]
[353181925,1739634631683,-504.64,0.00010017,2]
[353181926,1739634631693,-494.37,0.00010034,2]
[353181927,1739634631703,-500.0,0.00010068,2]
[353181928,1739634631712,-900.0,0.00010068,2]
[353181929,1739634631722,-1100.0,0.00010068,2]
[353181930,1739634631732,-165.05,0.00010137,2]
[353181931,1739634631742,-603.68,0.00010467,2]
[353181932,1739634631751,-176.28048689,0.00010802,2]
[353181933,1739634631761,-524.33,0.00010855,2]
[353181934,1739634631771,-308.67146159,0.00010858,2]
[353181935,1739634631780,-150.0,0.00010892,2]
[353181936,1739634631790,-150.0,0.00010896,2]
[353181937,1739634631799,-150.0,0.00010898,2]
[353181938,1739634631808,-150.0,0.00010902,2]
[353181939,1739634631818,-150.0,0.00010904,2]
[353181940,1739634631827,-150.0,0.00010906,2]
[353181941,1739634631837,-150.0,0.00010907,2]
[353181942,1739634631846,-1799.85825202,0.00010908,2]
[353181943,1739634631856,-150.0,0.0001091,2]
[353181944,1739634631864,-150.0,0.00010915,2]
[353181945,1739634631874,-150.0,0.00010918,2]
[353181946,1739634631883,-150.0,0.00010922,2]
[353181947,1739634631893,-150.0,0.00010923,2]
[353181948,1739634631902,-150.0,0.00010923,2]
[353181949,1739634631912,-150.0,0.00010923,2]
[353181950,1739634631921,-16779.52907494,0.00010923,2]
[353181951,1739634631933,-9443.0006922,0.00010923,2]
[353181953,1739634631943,-150.0,0.00010929,2]
[353181955,1739634631952,-150.0,0.00010937,2]
[353181957,1739634631962,-150.0,0.00010938,2]
[353181959,1739634631971,-150.0,0.00010938,2]
[353181961,1739634631981,-150.0,0.00010938,2]
[353181963,1739634631990,-150.0,0.0001094,2]
[353181965,1739634632000,-150.0,0.00010943,2]
[353181967,1739634632009,-150.0,0.00010944,2]
[353181969,1739634632020,-331.73295467,0.00010946,2]
[353181971,1739634632029,-150.0,0.00010949,2]
[353181973,1739634632039,-150.0,0.00010949,2]
[353181975,1739634632048,-150.0,0.00010951,2]
[353181977,1739634632058,-150.0,0.00010952,2]
[353181979,1739634632067,-1045.10676151,0.00010957,3]
[353181981,1739634632076,-150.0,0.00010957,2]
[353181983,1739634632086,-500.0,0.00010958,2]
[353181985,1739634632095,-500.0,0.00010958,2]
[353181987,1739634632104,-526.84711632,0.00010958,2]
[353181989,1739634632113,-500.0,0.00010958,2]
[353181991,1739634632336,-500.0,0.00010958,2]
[353181992,1739634632346,-500.0,0.00010958,2]
[353181993,1739634632356,-500.0,0.00010958,2]
[353181994,1739634632365,-500.0,0.00010958,2]
[353181995,1739634632375,-500.0,0.00010958,2]
[353181996,1739634632384,-332.676341,0.00010958,2]
[353181997,1739634632394,-618.833062,0.00010958,2]
[353181998,1739634632403,-159.716313,0.00010958,2]
[353181999,1739634632413,-500.0,0.00010958,2]
[353182000,1739634632422,-500.0,0.00010958,2]
[353182001,1739634632432,-500.0,0.00010958,2]
[353182002,1739634632441,-500.0,0.00010958,2]
[353182003,1739634632451,-502.03344435,0.00010958,2]
[353182004,1739634632460,-500.0,0.00010958,2]
[353182005,1739634632469,-500.0,0.00010958,2]
[353182006,1739634632479,-500.0,0.00010958,2]
[353182007,1739634632489,-500.0,0.00010958,2]
[353182008,1739634632499,-500.0,0.00010958,2]
[353182009,1739634632509,-251.02784357,0.00010958,2]
[353182010,1739634632519,-500.0,0.00010958,2]
[353182011,1739634632529,-350.85050323,0.00010958,2]
[353182012,1739634632538,-500.0,0.00010958,2]
[353182013,1739634632548,-500.0,0.00010958,2]
[353182014,1739634632558,-500.0,0.00010958,2]
[353182015,1739634632567,-500.0,0.00010958,2]
[353182016,1739634632577,-500.0,0.00010958,2]
[353182017,1739634632586,-500.0,0.00010958,2]
[353182018,1739634632596,-510.94886379,0.00010958,2]
[353182019,1739634632605,-500.0,0.00010958,2]
[353182020,1739634632614,-500.0,0.00010958,2]
[353182021,1739634632623,-500.0,0.00010958,2]
[353182022,1739634632633,-500.0,0.00010958,2]
[353182023,1739634632643,-500.0,0.00010958,2]
[353182024,1739634632653,-500.0,0.00010958,2]
[353182025,1739634632662,-500.0,0.00010958,2]
[353182026,1739634632671,-500.0,0.00010958,2]
[353182027,1739634632681,-500.0,0.00010958,2]
[353182028,1739634632690,-597.2,0.00010958,2]
[353182029,1739634632699,-500.0,0.00010958,2]
[353182030,1739634632708,-500.0,0.00010958,2]
[353182031,1739634632717,-500.0,0.00010958,2]
[353182032,1739634632726,-500.0,0.00010958,2]
[353182033,1739634632736,-500.0,0.00010958,2]
[353182034,1739634632746,-500.0,0.00010958,2]
[353182035,1739634632755,-500.0,0.00010958,2]
[353182036,1739634632765,-500.0,0.00010958,2]
[353182037,1739634632774,-500.0,0.00010958,2]
[353182038,1739634632783,-500.0,0.00010958,2]
[353182039,1739634632792,-500.0,0.00010958,2]
[353182040,1739634632802,-500.0,0.00010958,2]
[353182041,1739634632811,-500.0,0.00010958,2]
[353182042,1739634632820,-500.0,0.00010958,2]
[353182043,1739634632829,-500.0,0.00010958,2]
[353182044,1739634632839,-500.0,0.00010958,2]
[353182045,1739634632848,-245.25600002,0.00010958,2]
[353182046,1739634632927,-288.16,0.00010958,2]
[353182047,1739634632961,1314.7618,8.836e-05,2]
[353182048,1739634633025,-66.27691172,0.00010958,2]
[353182049,1739634633034,-199.61705703,0.00010958,2]
[353182050,1739634633102,-300.38294297,0.00010958,2]
[353182051,1739634633112,-239.51599628,0.00010958,2]
[353182056,1739634637400,-623.77379378,8.851e-05,2]
[353182057,1739634637411,-30.33881106,0.00010928,2]
[353182059,1739634637509,-119.66118894,0.00010928,2]
[353182060,1739634637519,-260.48400372,0.00010958,2]
[353182061,1739634637530,-500.0,0.00010958,2]
[353182062,1739634637539,-125.94199639,0.00010958,2]
[353182063,1739634637625,-374.05800361,0.00010958,2]
[353182064,1739634637634,-127.48277874,0.00010958,2]
[353182065,1739634637647,-297.79783875,0.00010958,2]
[353182066,1739634637814,-74.71938251,0.00010958,2]
[353182068,1739634637823,-184.70081749,0.00010958,2]
[353182108,1739634640037,-919.40116331,8.973e-05,2]
[353182128,1739634640252,-947.72946,8.973e-05,2]
[353182300,1739634642815,-1302.39517922,8.973e-05,2]
[353182435,1739634645793,-29199.85129747,8.973e-05,2]
[353182436,1739634645803,-623.77379378,8.973e-05,2]
[353182437,1739634645813,-315.29918251,0.00010958,2]
[353182438,1739634645823,-500.0,0.00010958,2]
[353182439,1739634645832,-500.0,0.00010958,2]
[353182440,1739634645842,-500.0,0.00010958,2]
[353182441,1739634645851,-500.0,0.00010958,2]
[353182442,1739634645861,-509.83277624,0.00010958,2]
[353182443,1739634645871,-500.0,0.00010958,2]
[353182444,1739634645881,-500.0,0.00010958,2]
[353182445,1739634645891,-500.0,0.00010958,2]
[353182446,1739634645901,-500.0,0.00010958,2]
[353182447,1739634645913,-500.0,0.00010958,2]
[353182448,1739634645923,-500.0,0.00010958,2]
[353182449,1739634645932,-500.0,0.00010958,2]
[353182450,1739634645942,-500.0,0.00010958,2]
[353182451,1739634645951,-500.0,0.00010958,2]
[353182452,1739634645961,-500.0,0.00010958,2]
[353182453,1739634645970,-500.0,0.00010958,2]
[353182454,1739634645980,-500.0,0.00010958,2]
[353182455,1739634645991,-500.0,0.00010958,2]
[353182456,1739634646000,-500.0,0.00010958,2]
[353182457,1739634646010,-500.0,0.00010958,2]
[353182458,1739634646020,-500.0,0.00010958,2]
[353182459,1739634646030,-500.0,0.00010958,2]
[353182460,1739634646039,-500.0,0.00010958,2]
[353182461,1739634646049,-500.0,0.00010958,2]
[353182462,1739634646059,-500.0,0.00010958,2]
[353182463,1739634646070,-500.0,0.00010958,2]
[353182464,1739634646079,-500.0,0.00010958,2]
[353182465,1739634646089,-212.71884617,0.00010958,2]
[353182466,1739634646098,-500.0,0.00010958,2]
[353182467,1739634646109,-500.0,0.00010958,2]
[353182468,1739634646119,-500.0,0.00010958,2]
[353182469,1739634646129,-500.0,0.00010958,2]
[353182470,1739634646139,-500.0,0.00010958,2]
[353182471,1739634646149,-500.0,0.00010958,2]
[353182472,1739634646160,-500.0,0.00010958,2]
[353182473,1739634646170,-500.0,0.00010958,2]
[353182474,1739634646179,-500.0,0.00010958,2]
[353182475,1739634646189,-500.0,0.00010958,2]
[353182476,1739634646199,-500.0,0.00010958,2]
[353182477,1739634646208,-500.0,0.00010958,2]
[353182478,1739634646218,-500.0,0.00010958,2]
[353182479,1739634646227,-500.0,0.00010958,2]
[353182480,1739634646238,-500.0,0.00010958,2]
[353182481,1739634646248,-500.0,0.00010958,2]
[353182482,1739634646258,-500.0,0.00010958,2]
[353182483,1739634646268,-500.0,0.00010958,2]
[353182484,1739634646278,-500.0,0.00010958,2]
[353182485,1739634646288,-500.0,0.00010958,2]
[353182486,1739634646298,-500.0,0.00010958,2]
[353182487,1739634646307,-500.0,0.00010958,2]
[353182488,1739634646317,-500.0,0.00010958,2]
[353182489,1739634646328,-500.0,0.00010958,2]
[353182490,1739634646340,-500.0,0.00010958,2]
[353182491,1739634646349,-500.0,0.00010958,2]
[353182492,1739634646359,-500.0,0.00010958,2]
[353182493,1739634646368,-500.0,0.00010958,2]
[353182494,1739634646379,-500.0,0.00010958,2]
[353182495,1739634646388,-500.0,0.00010958,2]
[353182496,1739634646398,-500.0,0.00010958,2]
[353182497,1739634646409,-500.0,0.00010958,2]
[353182498,1739634646419,-500.0,0.00010958,2]
[353182499,1739634646429,-500.0,0.00010958,2]
[353182500,1739634646438,-500.0,0.00010958,2]
[353182501,1739634646447,-500.0,0.00010958,2]
[353182502,1739634646457,-500.0,0.00010958,2]
[353182503,1739634646466,-500.0,0.00010958,2]
[353182504,1739634646475,-500.0,0.00010958,2]
[353182505,1739634646485,-500.0,0.00010958,2]
[353182506,1739634646496,-500.0,0.00010958,2]
[353182507,1739634646505,-500.0,0.00010958,2]
[353182508,1739634646514,-500.0,0.00010958,2]
[353182509,1739634646524,-500.0,0.00010958,2]
[353182510,1739634646533,-500.0,0.00010958,2]
[353182511,1739634646542,-500.0,0.00010958,2]
[353182512,1739634646552,-500.0,0.00010958,2]
[353182513,1739634646561,-500.0,0.00010958,2]
[353182514,1739634646570,-500.0,0.00010958,2]
[353182515,1739634646579,-500.0,0.00010958,2]
[353182516,1739634646589,-500.0,0.00010958,2]
[353182517,1739634646599,-500.0,0.00010958,2]
[353182518,1739634646609,-500.0,0.00010958,2]
[353182519,1739634646618,-500.0,0.00010958,2]
[353182520,1739634646627,-500.0,0.00010958,2]
[353182521,1739634646636,-500.0,0.00010958,2]
[353182522,1739634646645,-500.0,0.00010958,2]
[353182523,1739634646655,-500.0,0.00010958,2]
[353182524,1739634646664,-500.0,0.00010958,2]
[353182525,1739634646674,-158.29039618,0.00010958,2]
[353182526,1739634646683,-500.0,0.00010958,2]
[353182527,1739634646692,-500.0,0.00010958,2]
[353182528,1739634646703,-240.7595121,0.00010958,2]
[353182529,1739634646713,-500.0,0.00010958,2]
[353182530,1739634646722,-502.45010614,0.00010958,2]
[353182531,1739634646731,-500.0,0.00010958,2]
[353182532,1739634646740,-500.0,0.00010958,2]
[353182533,1739634646750,-500.0,0.00010958,2]
[353182534,1739634646759,-500.0,0.00010958,2]
[353182535,1739634646768,-500.0,0.00010958,2]
[353182536,1739634646778,-500.0,0.00010958,2]
[353182537,1739634646788,-500.0,0.00010958,2]
[353182538,1739634646797,-500.0,0.00010958,2]
[353182539,1739634646807,-500.0,0.00010958,2]
[353182540,1739634646816,-500.0,0.00010958,2]
[353182541,1739634646825,-500.0,0.00010958,2]
[353182542,1739634646834,-500.0,0.00010958,2]
[353182543,1739634646843,-500.0,0.00010958,2]
[353182544,1739634646853,-500.0,0.00010958,2]
[353182545,1739634646864,-500.0,0.00010958,2]
[353182546,1739634646874,-500.0,0.00010958,2]
[353182547,1739634646884,-500.0,0.00010958,2]
[353182548,1739634646894,-502.20209436,0.00010958,2]
[353182549,1739634646904,-500.0,0.00010958,2]
[353182550,1739634646914,-500.0,0.00010958,2]
[353182551,1739634646923,-500.0,0.00010958,2]
[353182552,1739634646933,-500.0,0.00010958,2]
[353182553,1739634646943,-500.0,0.00010958,2]
[353182554,1739634646952,-500.0,0.00010958,2]
[353182555,1739634646961,-500.0,0.00010958,2]
[353182556,1739634646971,-500.0,0.00010958,2]
[353182557,1739634646981,-500.0,0.00010958,2]
[353182558,1739634646991,-500.0,0.00010958,2]
[353182559,1739634647001,-515.10310667,0.00010958,2]
[353182560,1739634647010,-158.568017,0.00010958,2]
[353182561,1739634647021,-500.78272827,0.00010958,2]
[353182562,1739634647030,-502.04693481,0.00010958,2]
[353182563,1739634647041,-500.0,0.00010958,2]
[353182564,1739634647051,-501.0920682,0.00010958,2]
[353182565,1739634647062,-500.0,0.00010958,2]
[353182566,1739634647071,-500.0,0.00010958,2]
[353182567,1739634647081,-500.0,0.00010958,2]
[353182568,1739634647091,-500.0,0.00010958,2]
[353182569,1739634647101,-500.0,0.00010958,2]
[353182570,1739634647112,-346.24317477,0.00010958,2]
[353182571,1739634647122,-500.0,0.00010958,2]
[353182572,1739634647132,-500.0,0.00010958,2]
[353182573,1739634647143,-500.0,0.00010958,2]
[353182574,1739634647153,-500.0,0.00010958,2]
[353182575,1739634647163,-500.0,0.00010958,2]
[353182576,1739634647172,-500.0,0.00010958,2]
[353182577,1739634647182,-500.0,0.00010958,2]
[353182578,1739634647192,-500.0,0.00010958,2]
[353182579,1739634647201,-500.0,0.00010958,2]
[353182580,1739634647211,-500.0,0.00010958,2]
[353182581,1739634647220,-500.0,0.00010958,2]
[353182582,1739634647229,-500.0,0.00010958,2]
[353182583,1739634647239,-500.0,0.00010958,2]
[353182584,1739634647249,-565.28371541,0.00010958,2]
[353182585,1739634647259,-500.0,0.00010958,2]
[353182586,1739634647269,-500.0,0.00010958,2]
[353182587,1739634647278,-500.0,0.00010958,2]
[353182588,1739634647288,-500.0,0.00010958,2]
[353182589,1739634647297,-500.0,0.00010958,2]
[353182590,1739634647306,-500.0,0.00010958,2]
[353182591,1739634647315,-500.0,0.00010958,2]
[353182592,1739634647325,-500.0,0.00010958,2]
[353182593,1739634647339,-500.0,0.00010958,2]
[353182594,1739634647347,-500.0,0.00010958,2]
[353182595,1739634647356,-529.54661059,0.00010958,2]
[353182596,1739634647366,-500.0,0.00010958,2]
[353182597,1739634647375,-504.14586512,0.00010958,2]
[353182598,1739634647384,-500.0,0.00010958,2]
[353182599,1739634647394,-500.0,0.00010958,2]
[353182600,1739634647403,-500.0,0.00010958,2]
[353182601,1739634647414,-500.0,0.00010958,2]
[353182602,1739634647423,-510.24391536,0.00010958,2]
[353182603,1739634647433,-500.0,0.00010958,2]
[353182604,1739634647443,-533.53,0.00010958,2]
[353182605,1739634647453,-500.0,0.00010958,2]
[353182606,1739634647462,-500.0,0.00010958,2]
[353182607,1739634647472,-500.0,0.00010958,2]
[353182608,1739634647481,-500.07704383,0.00010958,2]
[353182609,1739634647491,-800.73,0.00010958,2]
[353182610,1739634647501,-500.0,0.00010958,2]
[353182611,1739634647511,-500.0,0.00010958,2]
[353182612,1739634647520,-500.0,0.00010958,2]